[Event "27th OIBM 2024"]
[Site "Gmund am Tegernsee"]
[Date "2024.10.28"]
[Round "3.4"]
[White "Piorun, Kacper"]
[Black "Morchiashvili, Bachana"]
[Result "1-0"]
[ECO "A26"]
[WhiteElo "2581"]
[BlackElo "2257"]
[Annotator "RC"]
[PlyCount "97"]
[EventDate "2024.09.16"]
[EventType "swiss"]
[EventCountry "GER"]
[SourceTitle "playchess.com"]
[Source "ChessBase"]
[SourceQuality "1"]
[TimeControl "40/5400+30:1800+30"]

1. c4 {[%emt 0:00:04]} e5 {[%emt 0:01:32]} 2. g3 {[%emt 0:00:58]} Nc6 {[%emt 0:00:22]} 3. Bg2 {[%emt 0:00:08]} g6 {[%emt 0:00:08]} 4. Nc3 {[%emt 0:01:15]} Bg7 {[%emt 0:00:04]} 5. d3 {[%emt 0:04:12]} d6 {[%emt 0:00:09]} 6. Rb1 {[%emt 0:00:21]} Nf6 {[%emt 0:08:12]} 7. b4 {[%emt 0:00:11]} O-O {[%emt 0:00:19]} 8. b5 {[%emt 0:10:38]} Ne7 {[%emt 0:00:10]} 9. Qb3 {[%emt 0:00:10]} a6 {[%emt 0:04:44]} 10. a4 {[%emt 0:01:50]} axb5 {[%emt 0:00:10]} 11. axb5 {[%emt 0:00:08]} h6 {[%emt 0:03:07]} 12. Nf3 {[%emt 0:05:26]} Be6 {[%emt 0:00:37]} 13. O-O {[%emt 0:09:03]} Qd7 {[%emt 0:01:06]} 14. Bd2 {[%emt 0:02:48]} Bh3 {[%emt 0:02:29]} 15. c5 {[%emt 0:01:04]} Bxg2 {[%emt 0:05:31]} 16. Kxg2 {[%emt 0:00:11]} b6 {[%emt 0:01:31]} 17. c6 {[%emt 0:11:09]} Qc8 {[%emt 0:08:08]} 18. e4 {[%emt 0:00:56]} Nh5 {[%emt 0:05:50]} 19. Ra1 {[%emt 0:03:31]} Rxa1 {[%emt 0:01:51]} 20. Rxa1 {[%emt 0:00:07]} Kh7 {[%emt 0:04:26]} 21. Ne1 {[%emt 0:07:54]} f5 {[%emt 0:01:44]} 22. f3 {[%emt 0:00:10]} g5 {[%emt 0:04:04]} 23. Ra7 {[%emt 0:12:50]} fxe4 {[%emt 0:05:42]} 24. dxe4 {[%emt 0:01:28]} Nf6 {[%emt 0:14:54]} 25. Nd3 {[%emt 0:02:04]} g4 {[%emt 0:02:54]} 26. f4 {[%emt 0:00:10]} Nh5 {[%emt 0:01:25]} 27. Ne2 {[%emt 0:06:11]} Nf6 {[%emt 0:07:12]} 28. Nf2 {[%emt 0:01:35]} Kh8 {[%emt 0:05:05]} 29. Be3 {[%emt 0:00:55]} Qd8 {[%emt 0:01:39]} 30. fxe5 {[%emt 0:03:38]} dxe5 {[%emt 0:00:33]} 31. Qd1 {[%emt 0:03:42]} Qxd1 {[%emt 0:07:19]} 32. Nxd1 {[%emt 0:00:04]} Nxe4 {[%emt 0:00:17]} 33. Rxc7 {[%emt 0:00:33]} Nd5 {[%emt 0:00:08]} 34. Rd7 {[%emt 0:00:16]} Nxe3+ {[%emt 0:00:48]} 35. Nxe3 {[%emt 0:00:08]} Rf2+ {[%emt 0:00:02]} 36. Kg1 {[%emt 0:00:08]} Rxe2 {[%emt 0:00:05]} 37. c7 {[%emt 0:00:21]} Re1+ {[%emt 0:00:37]} 38. Kg2 {[%emt 0:00:36]} Rc1 {[%emt 0:00:16]} 39. Rd8+ {[%emt 0:00:16]} Kh7 {[%emt 0:00:01]} 40. c8=Q {[%emt 0:00:07]} Rxc8 {[%emt 0:00:02]} 41. Rxc8 {[%emt 0:30:06]} Nd6 {[%emt 0:30:02]} 42. Rc6 {[%emt 0:00:52]} Nxb5 {[%emt 0:00:09]} 43. Rxb6 {[%emt 0:00:07]} Nd4 {[%emt 0:02:35]} 44. Nxg4 {[%emt 0:00:06]} h5 {[%emt 0:00:10]} 45. Nf2 {[%emt 0:01:56]} Kg8 {[%emt 0:00:22]} 46. Ne4 {[%emt 0:00:05]} Kf7 {[%emt 0:00:13]} 47. Ng5+ {[%emt 0:01:14]} Ke7 {[%emt 0:00:17]} 48. Rg6 {[%emt 0:01:01]} Bf6 {[%emt 0:01:06]} 49. Ne4 {[%emt 0:00:13]} 1-0

[Event "27th OIBM 2024"]
[Site "Gmund am Tegernsee"]
[Date "2024.10.28"]
[Round "3.5"]
[White "Weihrauch, Jakob"]
[Black "Jumabayev, Rinat"]
[Result "0-1"]
[ECO "B90"]
[WhiteElo "2260"]
[BlackElo "2577"]
[Annotator "TA"]
[PlyCount "70"]
[EventDate "2024.09.16"]
[EventType "swiss"]
[EventCountry "GER"]
[SourceTitle "playchess.com"]
[Source "ChessBase"]
[SourceQuality "1"]
[TimeControl "40/5400+30:1800+30"]

{[%evp 10,70,16,10,22,2,11,-24,-17,-18,0,0,0,0,0,0,0,0,84,49,58,62,72,0,0,0,0,-209,-214,-232,-228,-222,-237,-223,-243,-239,-235,-220,-233,-402,-297,-277,-310,-304,-300,-260,-66,-59,-59,-309,-93,-83,-91,-92,-87,-381,-377,-383,-386,-385,-389,-382,-368]} 1. e4 {[%emt 0:00:03]} c5 {[%emt 0:00:16]} 2. Nf3 {[%emt 0:00:11]} d6 {[%emt 0:00:04]} 3. d4 {[%emt 0:02:04]} cxd4 {[%emt 0:00:09]} 4. Nxd4 {[%emt 0:00:04]} Nf6 {[%emt 0:00:13]} 5. Nc3 {[%emt 0:00:06]} a6 {[%emt 0:00:16]} 6. a3 {[%emt 0:06:07]} e6 {[%emt 0:00:57][%cal Be7e6,Be6e5][%mdl 32]} 7. g4 {[%emt 0:03:02]} h6 {[%emt 0:32:46]} 8. f4 {[%emt 0:08:13]} e5 {[%emt 0:15:37] Black has an edge.} 9. Nf5 {[%emt 0:02:46]} h5 {[%emt 0:01:29]} 10. g5 {[%emt 0:18:05]} Nxe4 {[%emt 0:00:25]} 11. Nxg7+ {[%emt 0:00:21]} Bxg7 {[%emt 0:00:13]} 12. Nxe4 {[%emt 0:00:04]} d5 {[%emt 0:00:12] ...Bg4 would now be deadly.} 13. Nc3 {[%emt 0:02:36]} d4 {[%emt 0:09:15]} (13... Be6 $11 {keeps the balance.}) 14. Ne4 $16 {[%emt 0:01:55]} f5 {[%emt 0:10:34]} 15. gxf6 {[%emt 0:04:46]} Bxf6 {[%emt 0:00:08]} 16. Qe2 {[%emt 0:12:19]} (16. Bg2 $1 $16) 16... Nc6 $11 {[%emt 0:05:06]} 17. Bg2 $1 {[%emt 0:17:13] Strongly threatening 0-0.} Bg4 $36 {[%emt 0:00:12][%mdl 2048] Black is pushing.} 18. Bf3 {[%emt 0:09:03] [#]} (18. Qd3 $1 $11 {and White has nothing to worry.} Bh4+ 19. Ng3) 18... d3 $1 $19 {[%emt 0:03:21][%mdl 512]} 19. Qxd3 {[%emt 0:01:02]} (19. Nxf6+ $2 Qxf6 20. Qg2 Bxf3 (20... exf4 $2 21. Bxc6+ bxc6 22. Qe4+ Kf7 23. O-O $19) (20... Nd4 $2 21. Bxg4 hxg4 22. cxd3 $19) 21. Qxf3 O-O-O $19 (21... dxc2 $2 22. Qh3 $19)) 19... Bh4+ {[%emt 0:00:28]} 20. Ng3 {[%emt 0:00:03]} Qxd3 {[%emt 0:03:44]} 21. Bxc6+ {[%emt 0:00:01]} bxc6 {[%emt 0:01:12]} 22. cxd3 {[%emt 0:00:02] White is weak on the light squares} O-O-O {[%emt 0:00:24]} 23. fxe5 {[%emt 0:04:17]} Rxd3 {[%emt 0:02:20]} 24. O-O $2 {[%emt 0:02:19]} (24. Bf4) 24... Bxg3 {[%emt 0:08:08]} 25. hxg3 {[%emt 0:00:02]} Rxg3+ {[%emt 0:00:01]} 26. Kf2 {[%emt 0:03:04]} h4 {[%emt 0:00:07] And now ...Rh5 would win.} 27. Bg5 {[%emt 0:00:21]} Rh5 $2 {[%emt 0:01:43]} (27... Rf3+ $19 28. Kg1 Rb3) 28. Bxh4 $1 $15 {[%emt 0:00:28]} Rb3 {[%emt 0:01:27]} (28... Rf3+ 29. Kg2 Rb3 (29... Rxf1 30. Rxf1 Rxh4 31. Rf8+ Kc7 32. Kg3 $11) 30. Rf8+ Kd7 31. Bf6) 29. Bg3 {[%emt 0:02:10]} (29. Rh1 $1 $15) 29... Bh3 $2 {[%emt 0:02:04]} (29... Rh3 $19 30. Rg1 Rf3+ (30... Rxb2+ 31. Ke3 $17) 31. Ke1 Rhxg3 (31... Rfxg3 $2 32. Rxg3 Rxg3 33. Kd2 $19) 32. Rxg3 Rxg3) 30. Rg1 $17 {[%emt 0:00:05] [#]} Rf5+ $1 {[%emt 0:00:37]} (30... Rxb2+ $2 31. Ke3 $19) 31. Ke1 {[%emt 0:01:08]} Rxb2 {[%emt 0:00:43] ...Bg4 is the strong threat. Black has more active pieces.} 32. Rc1 $2 {[%emt 0:00:49][%mdl 8192]} (32. Kd1 $17) 32... Bg4 $19 {[%emt 0:00:18] Black is winning.} 33. Rxc6+ {[%emt 0:01:14]} Kb7 {[%emt 0:00:02]} 34. Rg6 {[%emt 0:00:29]} Bh5 {[%emt 0:01:47] ( -> ...Re2+)} 35. Rg7+ {[%emt 0:00:27]} Kc6 {[%emt 0:00:05] Weighted Error Value: White=0.41/Black=0.30.  Loses game:     	White=3     	---        Missed win:     	---       	Black=2      Mistake:       	White=2     	Black=1      Inaccurate:     	White=1     	---        OK:         	White=10    	Black=12     Best:        	White=7     	Black=3      Strong:       	White=2     	Black=1      Brilliant:      	---       	Black=1} 0-1

[Event "27th OIBM 2024"]
[Site "Gmund am Tegernsee"]
[Date "2024.10.28"]
[Round "3.6"]
[White "Vogel, Roven"]
[Black "Weber, Samuel"]
[Result "1/2-1/2"]
[ECO "E21"]
[WhiteElo "2559"]
[BlackElo "2256"]
[Annotator "RC"]
[PlyCount "77"]
[EventDate "2024.09.16"]
[EventType "swiss"]
[EventCountry "GER"]
[SourceTitle "playchess.com"]
[Source "ChessBase"]
[SourceQuality "1"]
[TimeControl "40/5400+30:1800+30"]

1. Nf3 {[%emt 0:00:04]} Nf6 {[%emt 0:00:06]} 2. c4 {[%emt 0:00:07]} Nc6 {[%emt 0:00:06]} 3. d4 {[%emt 0:00:40]} e6 {[%emt 0:00:14]} 4. Nc3 {[%emt 0:01:47]} Bb4 {[%emt 0:00:36]} 5. Bd2 {[%emt 0:00:35]} a5 {[%emt 0:04:05]} 6. b3 {[%emt 0:12:47]} d6 {[%emt 0:08:16]} 7. a3 {[%emt 0:00:32]} Bxc3 {[%emt 0:01:58]} 8. Bxc3 {[%emt 0:00:05]} O-O {[%emt 0:01:10]} 9. e3 {[%emt 0:11:49]} Qe7 {[%emt 0:07:11]} 10. Be2 {[%emt 0:00:33]} e5 {[%emt 0:02:28]} 11. O-O {[%emt 0:05:18]} Bf5 {[%emt 0:07:59]} 12. d5 {[%emt 0:05:42]} Nb8 {[%emt 0:01:06]} 13. Nd2 {[%emt 0:00:54]} c6 {[%emt 0:07:23]} 14. Bb2 {[%emt 0:07:42]} Na6 {[%emt 0:06:44]} 15. dxc6 {[%emt 0:01:36]} bxc6 {[%emt 0:00:22]} 16. Bc3 {[%emt 0:00:28]} Nc7 {[%emt 0:09:35]} 17. b4 {[%emt 0:02:56]} a4 {[%emt 0:03:06]} 18. Bf3 {[%emt 0:04:31]} d5 {[%emt 0:11:22]} 19. b5 {[%emt 0:00:31]} Bd3 {[%emt 0:00:29]} 20. bxc6 {[%emt 0:21:01]} Bxf1 {[%emt 0:04:24]} 21. Bb4 {[%emt 0:00:38]} Qe6 {[%emt 0:00:50]} 22. cxd5 {[%emt 0:02:50]} Ncxd5 {[%emt 0:01:58]} 23. Bxf8 {[%emt 0:01:09]} e4 {[%emt 0:02:11]} 24. Qxf1 {[%emt 0:00:57]} exf3 {[%emt 0:00:35]} 25. Bc5 {[%emt 0:00:20]} Qxc6 {[%emt 0:02:07]} 26. Bd4 {[%emt 0:00:15]} fxg2 {[%emt 0:00:40]} 27. Qxg2 {[%emt 0:00:06]} Rc8 {[%emt 0:01:41]} 28. h3 {[%emt 0:06:40]} Qc2 {[%emt 0:01:56]} 29. Nf3 {[%emt 0:00:07]} Qe4 {[%emt 0:03:19]} 30. Kh2 {[%emt 0:05:04]} Qg6 {[%emt 0:06:49]} 31. Ne5 {[%emt 0:01:06]} Qxg2+ {[%emt 0:00:34]} 32. Kxg2 {[%emt 0:00:02]} Ne4 {[%emt 0:01:06]} 33. Rb1 {[%emt 0:01:05]} f6 {[%emt 0:00:10]} 34. Nd3 {[%emt 0:00:13]} Rc2 {[%emt 0:01:22]} 35. Rb2 {[%emt 0:05:14]} Rd2 {[%emt 0:01:35]} 36. Rxd2 Nxd2 {[%emt 0:00:01]} 37. Nb2 {[%emt 0:01:50]} Nb1 {[%emt 0:01:17]} 38. Nxa4 {[%emt 0:01:44]} Nxa3 {[%emt 0:00:09]} 39. Nc3 {[%emt 0:00:23]} 1/2-1/2

[Event "27th OIBM 2024"]
[Site "Gmund am Tegernsee"]
[Date "2024.10.28"]
[Round "3.7"]
[White "Smits, Mark"]
[Black "Stremavicius, Titas"]
[Result "0-1"]
[ECO "B11"]
[WhiteElo "2251"]
[BlackElo "2541"]
[Annotator "TA"]
[PlyCount "72"]
[EventDate "2024.09.16"]
[EventType "swiss"]
[EventCountry "GER"]
[SourceTitle "playchess.com"]
[Source "ChessBase"]
[SourceQuality "1"]
[TimeControl "40/5400+30:1800+30"]

{[%evp 12,72,13,-5,45,38,51,58,59,41,56,50,43,13,28,29,40,0,0,0,0,0,0,-20,0,0,0,0,0,0,0,0,0,9,24,0,0,0,0,-60,-59,-61,-63,-70,-62,-62,11,-69,-52,-91,-95,-121,-128,-163,-163,-445,-437,-424,-418,-29992,-29993,-29997,-208]} 1. e4 {[%emt 0:00:11]} c6 {[%emt 0:00:08]} 2. Nc3 {[%emt 0:00:15]} d5 {[%emt 0:00:07]} 3. Nf3 {[%emt 0:00:11]} Bg4 {[%emt 0:00:16]} 4. h3 {[%emt 0:00:23]} Bxf3 {[%emt 0:00:08]} 5. Qxf3 {[%emt 0:00:06]} e6 {[%emt 0:00:09]} 6. d4 {[%emt 0:03:32]} Nf6 {[%emt 0:01:11]} 7. Bd3 {[%emt 0:03:47]} g6 {[%emt 0:24:22]} (7... dxe4 $11 8. Nxe4 Qxd4) 8. Be3 {[%emt 0:14:21]} Bg7 {[%emt 0:02:04]} 9. O-O-O {[%emt 0:01:15]} dxe4 {[%emt 0:18:52] White is slightly better.} 10. Nxe4 {[%emt 0:00:23]} Nxe4 {[%emt 0:00:08]} 11. Bxe4 {[%emt 0:00:50][%cal Od4d5]} Nd7 {[%emt 0:00:07]} 12. c4 {[%emt 0:02:10]} O-O {[%emt 0:03:03]} 13. Kb1 {[%emt 0:01:07]} Nf6 {[%emt 0:11:54]} 14. Bc2 {[%emt 0:00:57]} b5 {[%emt 0:02:57]} 15. Qxc6 {[%emt 0:06:16]} bxc4 {[%emt 0:00:03]} 16. Qxc4 {[%emt 0:00:51]} a5 {[%emt 0:00:08]} 17. Rd3 {[%emt 0:09:45]} Rc8 {[%emt 0:03:13][%mdl 1024] Black has compensation.} 18. Qa4 {[%emt 0:03:03]} Qd5 {[%emt 0:00:06]} 19. f3 {[%emt 0:02:43]} Rc4 {[%emt 0:03:50]} 20. Qa3 {[%emt 0:00:50] Bb3 is the strong threat.} Qa8 {[%emt 0:12:52]} 21. Bb3 {[%emt 0:03:25]} Rc6 {[%emt 0:03:51]} 22. Rc1 {[%emt 0:03:01] Hoping for Rxc6.} Rxc1+ {[%emt 0:00:46]} 23. Bxc1 {[%emt 0:00:10]} Qa6 $36 {[%emt 0:00:10][%mdl 2048] Black is pushing.} 24. Bc2 {[%emt 0:05:01]} Nd5 {[%emt 0:00:18]} 25. Bd2 {[%emt 0:01:14] Prevents Nb4} (25. Rd1 $11) 25... Ra8 $15 {[%emt 0:00:03]} 26. Qa4 {[%emt 0:07:15]} Nb6 {[%emt 0:00:57]} 27. Qc6 {[%emt 0:01:18][%cal Od4d5]} Rc8 {[%emt 0:00:05]} 28. Qe4 {[%emt 0:00:26]} Nd5 {[%emt 0:00:19]} ({Black should try} 28... a4 $1 $15) 29. a3 {[%emt 0:03:59]} (29. a4 $11) 29... a4 {[%emt 0:02:04]} 30. Bc1 {[%emt 0:04:16] [#]} Rc4 $1 {[%emt 0:04:26] Black is much more active.} 31. Rd2 {[%emt 0:05:18]} Qb6 {[%emt 0:00:19] Threatens to win with ...Nc3+.} 32. Ka2 {[%emt 0:04:45]} Bxd4 {[%emt 0:00:47]} 33. Re2 $2 {[%emt 0:01:56]} (33. Qe1) 33... Qc5 $19 {[%emt 0:01:04]} 34. Qd3 {[%emt 0:00:45] Repels Rc3} Rc3 {[%emt 0:01:32]} 35. Qd1 {[%emt 0:04:31] [#]} (35. bxc3 $19 Nxc3+ 36. Ka1) 35... Rxa3+ $3 {[%emt 0:00:11][%mdl 512]} 36. Kb1 {[%emt 0:00:06] [#]} (36. bxa3 Nc3+) 36... Nc3+ $1 {[%emt 0:00:34][%mdl 512] Weighted Error Value: White=0.44/Black=0.08 (flawless) .  Mistake:       	White=4     	Black=1      Inaccurate:     	White=3     	---        OK:         	White=12    	Black=12     Best:        	---       	Black=6      Strong:       	---       	Black=1} 0-1

[Event "27th OIBM 2024"]
[Site "Gmund am Tegernsee"]
[Date "2024.10.28"]
[Round "3.8"]
[White "Amar, Elham"]
[Black "Szajbely, Zsigmond"]
[Result "1-0"]
[ECO "B30"]
[WhiteElo "2540"]
[BlackElo "2240"]
[Annotator "TA"]
[PlyCount "81"]
[EventDate "2024.09.16"]
[EventType "swiss"]
[EventCountry "GER"]
[SourceTitle "playchess.com"]
[Source "ChessBase"]
[SourceQuality "1"]
[TimeControl "40/5400+30:1800+30"]

{[%evp 9,81,33,34,3,9,10,4,0,76,65,66,37,80,70,73,74,69,55,46,41,43,16,81,90,569,522,560,526,516,424,495,260,387,243,547,549,537,541,509,363,373,362,361,370,433,442,437,452,436,419,474,470,607,238,225,140,129,140,910,889,884,876,1400,1318,1653,1706,4702,2634,29986,29987,29989,29990,29991,29992]} 1. e4 {[%emt 0:00:02]} c5 {[%emt 0:02:11]} 2. Nf3 {[%emt 0:00:12]} Nc6 {[%emt 0:00:13]} 3. Bb5 {[%emt 0:00:33]} e5 {[%emt 0:00:02]} 4. O-O {[%emt 0:00:24]} Bd6 {[%emt 0:00:55]} 5. d4 {[%emt 0:00:17]} Nxd4 {[%emt 0:00:52]} 6. Nxd4 {[%emt 0:00:18]} cxd4 {[%emt 0:00:30]} 7. c3 {[%emt 0:00:05]} Bc5 {[%emt 0:00:10]} 8. cxd4 {[%emt 0:09:44] The position is equal.} exd4 {[%emt 0:00:16]} (8... Bxd4 $11 {keeps the balance.} 9. Nd2 Qe7) 9. Nd2 {[%emt 0:01:48] White has more active pieces.} Ne7 {[%emt 0:03:01]} 10. Nb3 {[%emt 0:02:08][%csl LRc5,LRd4]} Qb6 {[%emt 0:07:41]} 11. a4 {[%emt 0:07:57]} O-O {[%emt 0:11:09]} 12. Nxc5 {[%emt 0:05:43]} Qxc5 {[%emt 0:00:07]} 13. b3 {[%emt 0:00:13] Strongly threatening Ba3.} (13. b4 $5 Qd6 14. Bd3 $14) 13... d6 {[%emt 0:10:14]} 14. Ba3 {[%emt 0:01:40][%cal Bc1a3,Ba3d6,Bd6g3][%mdl 32]} Qb6 {[%emt 0:00:04]} 15. Bc4 {[%emt 0:09:00][%cal Oa4a5]} Nc6 {[%emt 0:07:30]} (15... Re8 $11 {remains equal.}) 16. Bxd6 $16 {[%emt 0:00:27] This pair of bishops is nice.} Re8 {[%emt 0:00:05][%mdl 8192] [#]} (16... Rd8 $16 {is tougher.} 17. e5 Be6) 17. Bxf7+ $1 $18 {[%emt 0:08:08][%mdl 512]} Kxf7 {[%emt 0:00:04]} 18. Qh5+ {[%emt 0:00:05]} g6 {[%emt 0:03:48]} 19. Qxh7+ {[%emt 0:00:59]} Ke6 {[%emt 0:13:12]} 20. Qxg6+ {[%emt 0:08:04]} Kd7 {[%emt 0:00:03][%cal Oc6e7,Be6d7,Bd7e8,Be8f7][%mdl 32] White must now prevent ...Ne7!} 21. Bg3 {[%emt 0:00:37]} Qb4 {[%emt 0:08:03] Prevents Qd6+.} (21... Ne7 {is a better chance.} 22. Qh5 Qg6 23. Qb5+ Ke6) 22. Qf7+ {[%emt 0:02:21]} Re7 {[%emt 0:00:31]} 23. Qd5+ {[%emt 0:00:04]} Ke8 {[%emt 0:00:06]} 24. Bd6 {[%emt 0:00:02]} Be6 {[%emt 0:01:48][%cal Bc8e6,Be6d5,Bd5b3,Bb3c2][%mdl 32]} 25. Bxb4 {[%emt 0:00:17]} Bxd5 {[%emt 0:00:02]} 26. Bxe7 {[%emt 0:00:06]} Bxb3 {[%emt 0:04:35]} 27. Bg5 {[%emt 0:00:28]} Bc2 {[%emt 0:00:17]} 28. f4 {[%emt 0:06:25]} Kf7 {[%emt 0:01:07]} 29. Rae1 {[%emt 0:02:11]} d3 {[%emt 0:03:17][%cal Bd4d3,Bd3d2][%mdl 32]} 30. e5 {[%emt 0:00:51]} Kg6 {[%emt 0:00:58]} 31. g4 $2 {[%emt 0:02:05]} (31. h4 Kf5 32. g4+ Kxg4 33. f5) 31... d2 {[%emt 0:01:02] [#]} 32. Rd1 {[%emt 0:00:09]} Bxd1 {[%emt 0:00:06]} 33. Rxd1 $16 {[%emt 0:00:05][%mdl 4096] Endgame. KRB-KRN} Nd4 $2 {[%emt 0:00:02][%mdl 8192] This move loses the game for Black.} (33... Nxe5 $16 34. h4 (34. Rxd2 $2 {perishes.} Nf3+ 35. Kg2 Nxd2 $19) (34. fxe5 Kxg5 35. Rxd2 Kxg4 $16) 34... Nxg4) 34. Kf2 $18 {[%emt 0:00:17]} (34. Rxd2 Nf3+ 35. Kg2 Nxd2 $11) 34... Ne6 {[%emt 0:02:51]} 35. Rxd2 {[%emt 0:00:22]} Nxg5 {[%emt 0:00:08] KRN-KR} 36. Rd6+ {[%emt 0:00:06]} Kg7 {[%emt 0:00:25]} 37. fxg5 {[%emt 0:00:02]} b6 {[%emt 0:02:43]} 38. h4 {[%emt 0:00:25][%cal Bh2h4,Bh4h5,Bh5h6][%mdl 32] Threatening mate with h5.} Rc8 {[%emt 0:00:36]} 39. h5 {[%emt 0:00:12] White mates.} Rc5 {[%emt 0:00:22]} 40. h6+ {[%emt 0:00:07]} Kh7 {[%emt 0:01:18]} 41. Rd7+ {[%emt 0:30:12] Weighted Error Value: White=0.56/Black=0.85.  Loses game:     	---       	Black=2      Mistake:       	White=1     	Black=3      Inaccurate:     	White=3     	Black=2      OK:         	White=9     	Black=10     Best:        	White=3     	Black=4      Brilliant:      	White=1     	---} 1-0